bitfinex-derivatives/quotes_ETHF0:USTF0_20250314
["timestamp","ask_amount","ask_price","bid_price","bid_amount"]
[1741976157559,0.00775936,1932.8,1932.7,2.4826]
[1741976158462,0.00775936,1932.8,1932.7,2.52610461]
[1741976159255,0.00775936,1932.8,1932.7,2.55132428]
[1741976159463,1.4455,1933.1,1933.0,1.03464]
[1741976159758,3.9335,1933.4,1933.1,1.03454]
[1741976159759,1.03453,1933.2,1933.1,1.03454]
[1741976159963,0.94063605,1933.1,1933.0,2.44679]
[1741976160152,0.94063605,1933.1,1932.9,2.38504]
[1741976160348,1.03474,1932.8,1932.7,3.2078]
[1741976160565,1.03474,1932.8,1932.7,1.06002433]
[1741976161250,1.03474,1932.8,1932.7,1.085244]
[1741976161455,1.03474,1932.8,1932.7,0.050444]
[1741976161656,4.24254,1932.8,1932.7,0.050444]
[1741976162165,4.24254,1932.8,1932.7,1.085244]
[1741976162356,4.24254,1932.8,1932.7,0.050444]
[1741976162966,4.24254,1932.8,1932.7,1.085244]
[1741976163152,4.24254,1932.8,1932.7,0.050444]
[1741976163859,1.03504,1932.3,1932.2,1.03505]
[1741976164067,1.03503,1932.3,1932.2,1.060257]
[1741976164655,2.47719,1932.4,1932.2,0.745327]
[1741976164865,1.03501,1932.3,1932.2,1.780367]
[1741976165067,2.47721,1932.3,1932.2,1.80558934]
[1741976165962,1.4422,1932.3,1932.2,1.80558934]
[1741976166168,1.4422,1932.3,1932.2,1.82840832]
[1741976167461,2.47721,1932.3,1932.2,0.79336832]
[1741976168066,2.47721,1932.3,1932.2,0.07326832]
[1741976168272,5.68501,1932.3,1932.2,0.07326832]
[1741976168965,4.24281,1932.3,1932.2,0.07326832]
[1741976169160,1.03501,1932.3,1932.2,0.07326832]
[1741976169767,1.449,1932.3,1932.2,0.07326832]
[1741976170167,2.48401,1932.3,1932.2,0.07326832]
[1741976171469,1.449,1932.3,1932.2,1.10832832]
[1741976171771,1.03493,1932.5,1932.2,0.07326832]
[1741976172075,3.2078,1932.6,1932.5,1.0349]
[1741976172373,4.6165,1932.6,1932.5,1.10816832]
[1741976173772,1.4087,1932.6,1932.5,1.10816832]
[1741976174875,2.44355,1932.6,1932.5,1.10816832]
[1741976175168,1.4087,1932.6,1932.5,1.10816832]
[1741976175374,5.65129,1932.8,1932.6,1.03483]
[1741976175575,2.4115,1932.7,1932.6,1.03483]
[1741976176075,1.03485,1932.6,1932.5,1.10814832]
[1741976176377,1.3767,1932.6,1932.5,1.10814832]
[1741976176680,2.41155,1932.6,1932.5,1.10814832]
[1741976176874,2.41155,1932.6,1932.5,2.52514832]
[1741976177274,1.3767,1932.6,1932.5,2.52514832]
[1741976177776,2.41155,1932.6,1932.5,1.49026832]
[1741976178481,5.61935,1932.6,1932.5,0.07326832]
[1741976179372,2.41155,1932.6,1932.5,0.07326832]
[1741976179577,2.41155,1932.6,1932.5,1.10816832]
[1741976180281,2.41155,1932.6,1932.5,1.83296832]
[1741976180582,2.41155,1932.6,1932.5,3.14516832]
[1741976181883,1.3767,1932.6,1932.5,3.14516832]
[1741976182079,1.03483,1932.7,1932.6,1.03485]
[1741976182280,2.45613,1932.7,1932.6,1.49806832]
[1741976183283,2.45613,1932.7,1932.6,2.53291832]
[1741976184281,1.03483,1932.7,1932.6,2.53291832]
[1741976185783,1.03483,1932.7,1932.6,1.49806832]
[1741976187080,1.73653,1932.7,1932.6,1.49806832]
[1741976187282,4.94433,1932.7,1932.6,0.07326832]
[1741976187985,6.38493,1932.7,1932.6,0.07326832]
[1741976189787,5.68323,1932.7,1932.6,2.48451832]
[1741976190086,4.6484,1932.7,1932.3,3.2078]
[1741976190287,8.593,1932.1,1930.6,15.15717503]
[1741976190588,4.24354,1931.0,1930.6,12.7515765]
[1741976190788,1.4293,1930.9,1930.8,1.03577]
[1741976190993,5.2955,1931.3,1931.2,1.0356]
[1741976191291,1.03562,1931.2,1931.0,2.41207]
[1741976191586,5.2955,1931.3,1931.0,2.41207]
[1741976191587,0.6584,1931.3,1931.0,5.0454]
[1741976191891,0.6584,1931.3,1931.1,1.3764]
[1741976192093,0.6584,1931.3,1931.1,2.0581]
[1741976192094,1.4293,1931.3,1931.1,2.0581]
[1741976192487,1.4293,1931.3,1931.2,1.3764]
[1741976194496,2.46485,1931.3,1931.2,1.3764]
[1741976195090,1.4293,1931.3,1931.2,1.3764]
[1741976195291,2.46485,1931.3,1931.2,1.3764]
[1741976195792,1.4293,1931.3,1931.2,1.3764]
[1741976196393,2.46485,1931.3,1931.2,1.3764]
[1741976196692,1.4293,1931.3,1931.1,0.6817]
[1741976196892,1.4293,1931.3,1931.0,3.2078]
[1741976196893,1.3211,1931.2,1930.8,6.0676]
[1741976197101,1.03574,1931.0,1930.8,6.0676]
[1741976197289,1.03574,1931.0,1930.9,1.4274]
[1741976197691,7.2298,1931.2,1930.6,3.2078]
[1741976197992,3.2078,1930.8,1930.5,1.4274]
[1741976198298,4.24372,1930.6,1930.3,1.03607]
[1741976198595,4.24372,1930.6,1930.3,2.46347]
[1741976198787,1.03598,1930.5,1930.3,1.4274]
[1741976198987,1.03599,1930.5,1930.3,1.4274]
[1741976199194,1.03603,1930.4,1930.3,1.4274]
[1741976199392,1.036,1930.5,1930.3,2.46348]
[1741976199690,1.03603,1930.4,1930.3,1.4274]
[1741976199900,1.03608,1930.3,1930.1,5.38666]
[1741976200089,3.2078,1930.4,1930.1,3.655]
[1741976200390,1.03613,1930.3,1930.1,1.03615]
[1741976200597,1.03613,1930.3,1930.2,1.03614]
[1741976200788,1.03614,1930.2,1930.1,1.03617]
[1741976200995,3.21555936,1930.4,1930.1,1.03616]
[1741976201188,1.0361,1930.3,1930.1,1.03616]
[1741976201393,1.0361,1930.3,1930.2,1.03614]
[1741976201696,1.0361,1930.3,1930.1,1.03616]
[1741976201898,1.0361,1930.3,1930.2,1.3782]
[1741976202192,1.0363,1929.9,1929.7,1.03638]
[1741976202398,1.03639,1929.8,1929.6,2.49033]
[1741976202696,3.2078,1929.9,1929.7,2.4903]
[1741976202902,1.03635,1929.8,1929.7,1.4539]
[1741976203393,4.24412,1929.9,1929.7,1.03638]
[1741976203598,3.2078,1929.9,1929.7,1.03638]
[1741976203899,1.03634,1929.9,1929.7,1.03638]
[1741976204086,6.8608,1930.1,1929.6,3.2078]
[1741976204291,1.3398,1930.2,1929.8,3.2078]
[1741976204498,1.3398,1930.2,1929.9,1.4539]
[1741976204795,1.03622,1930.1,1929.9,2.49016]
[1741976205000,3.2078,1930.1,1930.0,1.03624]
[1741976205195,3.2078,1930.1,1930.0,2.38684]
[1741976205500,4.24399,1930.1,1930.0,1.3506]
[1741976206497,3.2078,1930.1,1930.0,1.3506]
[1741976206900,4.24399,1930.1,1930.0,1.3506]
[1741976207501,1.71305,1930.2,1930.1,1.03619]
[1741976207697,1.03619,1930.1,1930.0,1.3506]
[1741976208000,4.24399,1930.1,1930.0,1.3506]
[1741976208197,3.2078,1930.1,1929.7,0.6987]
[1741976208393,1.03635,1929.8,1929.7,1.4406]
[1741976209196,1.03633,1929.9,1929.7,1.4406]
[1741976209399,1.03635,1929.8,1929.7,1.4406]
[1741976209596,1.03651,1929.5,1929.4,3.8732]
[1741976209890,1.03651,1929.5,1929.4,1.4406]
[1741976210095,1.03649,1929.6,1929.4,2.47714]
[1741976210292,1.03644,1929.7,1929.4,1.4406]
[1741976210503,7.89919,1929.8,1929.4,1.4406]
[1741976210805,4.24419,1929.8,1929.6,1.03646]
[1741976211095,4.24419,1929.8,1929.7,1.3894]
[1741976211301,3.2078,1930.0,1929.7,1.3894]
[1741976211502,3.2078,1930.1,1929.7,5.0474]
[1741976211801,1.04380936,1930.4,1930.1,1.03615]
[1741976212103,1.04380936,1930.4,1930.2,1.3894]
[1741976212306,1.04380936,1930.4,1930.2,2.0772]
[1741976212505,1.04383936,1930.4,1930.2,2.0772]
[1741976212707,1.04383936,1930.4,1930.2,3.11331]
[1741976213008,1.04383936,1930.4,1930.2,3.11332]
[1741976213302,1.04383936,1930.4,1930.2,3.11333]
[1741976213692,1.03608,1930.3,1930.2,2.0772]
[1741976213892,0.00775936,1930.4,1930.2,2.0772]
[1741976214101,1.04381936,1930.4,1930.2,3.11334]
[1741976214799,0.00775936,1930.4,1930.2,2.0772]
[1741976215195,1.04380936,1930.4,1930.3,0.6754]
[1741976216196,4.25160936,1930.4,1930.3,0.6754]
[1741976216394,1.04380936,1930.4,1930.3,0.6754]
[1741976216807,0.00775936,1930.4,1930.3,1.71148]
[1741976217601,0.00775936,1930.4,1930.3,4.91928]
[1741976218006,0.00775936,1930.4,1930.3,1.71148]
[1741976218398,3.2078,1930.9,1930.5,2.58993]
[1741976218607,3.2078,1930.9,1930.8,1.03581]
[1741976218903,4.24344,1931.2,1931.0,1.03567]
[1741976219103,4.24343,1931.2,1931.0,1.03567]
[1741976219405,1.3812,1931.3,1931.2,1.0356]
[1741976219599,0.00775936,1931.3,1931.1,2.40402]
[1741976219804,0.00775936,1931.3,1930.9,3.21555936]
[1741976219805,5.63231936,1931.3,1931.2,1.3684]
[1741976220112,4.59675936,1931.3,1931.2,2.404]
[1741976220404,0.00775936,1931.3,1931.2,2.404]
[1741976221207,0.00775936,1931.3,1931.2,5.6118]
[1741976221610,0.00775936,1931.3,1931.2,6.3384]
[1741976223604,1.4513,1931.7,1931.6,1.03539]
[1741976223804,4.24306,1931.9,1931.6,1.03539]
[1741976224004,2.41348,1931.8,1931.6,1.03539]
[1741976224209,1.3782,1931.8,1931.7,2.43943]
[1741976224412,4.94116,1932.1,1931.8,1.03526]
[1741976224711,2.41337,1932.0,1931.9,1.4041]
[1741976224911,1.3782,1932.0,1931.9,1.4041]
[1741976225313,2.41337,1932.0,1931.9,1.4041]
[1741976225613,1.3782,1932.0,1931.9,1.4041]
[1741976225809,1.3782,1932.0,1931.9,2.43932]
[1741976226315,0.00775936,1932.1,1932.0,1.03517]
[1741976226505,0.00775936,1932.1,1931.9,1.4041]
[1741976226812,1.03517,1932.0,1931.9,1.4041]
[1741976227016,2.36887,1932.0,1931.9,1.4041]
[1741976228616,2.58807,1931.9,1931.4,1.03546]
[1741976228810,2.58807,1931.9,1931.4,1.3773]
[1741976228811,1.03547,1931.5,1931.4,1.3773]
[1741976229013,1.03542,1931.6,1931.4,2.41277]
[1741976229317,1.03536,1931.7,1931.4,1.3773]
[1741976229521,1.3938,1931.6,1931.5,1.0354]
[1741976230420,2.42919,1931.6,1931.4,2.41275]
[1741976230614,2.42922,1931.6,1931.4,2.41276]
[1741976230921,2.42919,1931.6,1931.4,2.41276]
[1741976231214,1.3938,1931.6,1931.4,1.3773]
[1741976231421,1.03544,1931.5,1931.4,1.3773]
[1741976231620,1.03547,1931.5,1931.3,1.03555]
[1741976231824,1.3938,1931.4,1931.3,2.35995]
[1741976233525,1.03545,1931.5,1931.3,2.35995]
[1741976233818,1.03545,1931.5,1931.4,1.3332]
[1741976234014,2.37445,1931.5,1931.4,1.3332]
[1741976234621,2.37444,1931.5,1931.4,2.36869]
[1741976235011,2.37444,1931.5,1931.4,1.3332]
[1741976235721,4.5468,1931.5,1931.1,4.5542]
[1741976236023,1.03563,1931.2,1931.0,1.03566]
[1741976236224,1.4492,1931.1,1931.0,2.38796]
[1741976236724,1.4492,1931.1,1931.0,1.3523]
[1741976237021,1.4492,1931.1,1931.0,2.38801]
[1741976237523,3.2078,1931.3,1931.2,1.0356]
[1741976237926,0.7104,1931.4,1931.0,3.94154]
[1741976237927,1.74591,1931.4,1931.0,3.94154]
[1741976238126,4.95371,1931.4,1931.3,1.03555]
[1741976238425,4.95371,1931.4,1931.2,1.03556]
[1741976238630,1.74591,1931.4,1931.2,1.03556]
[1741976238825,1.3625,1931.3,1931.2,1.03556]
[1741976239412,1.03565,1931.1,1931.0,1.3523]
[1741976239816,1.03565,1931.1,1931.0,2.38798]
[1741976240018,2.39815,1931.1,1931.0,2.38798]
[1741976240231,1.3625,1931.1,1931.0,2.38798]
[1741976240426,2.39815,1931.1,1931.0,1.3523]
[1741976240626,1.3625,1931.1,1931.0,2.38801]
[1741976241126,2.39815,1931.1,1931.0,1.3523]
[1741976241421,2.39815,1931.1,1930.2,3.2078]
[1741976241422,1.03598,1930.5,1930.2,3.2078]
[1741976241727,1.03597,1930.6,1930.4,2.40943]
[1741976241917,2.58957,1930.8,1930.4,2.40943]
[1741976241918,1.03598,1930.5,1930.4,2.40943]
[1741976242113,1.03595,1930.6,1930.4,2.40943]
[1741976242322,3.2078,1930.7,1930.5,1.03598]
[1741976242527,1.03592,1930.6,1930.4,2.4094]
[1741976243025,1.03598,1930.5,1930.4,2.40941]
[1741976243228,1.03594,1930.6,1930.5,1.03598]
[1741976243623,0.00775936,1930.7,1930.5,1.03598]
[1741976243818,1.03592,1930.6,1930.4,2.40939]
[1741976244125,1.03592,1930.6,1930.5,1.03596]
[1741976244330,1.03592,1930.6,1930.5,1.03598]
[1741976244632,1.04366936,1930.7,1930.5,1.03598]
[1741976244826,1.03592,1930.6,1930.5,1.03598]
[1741976245022,1.04364936,1930.7,1930.5,1.03598]
[1741976245422,0.00775936,1930.7,1930.4,1.3734]
[1741976245627,1.04365936,1930.7,1930.4,1.3734]
[1741976245825,0.00775936,1930.7,1930.6,1.03592]
[1741976246932,1.04362936,1930.7,1930.6,1.03592]
[1741976248636,0.00775936,1930.7,1930.6,1.03592]
[1741976248931,1.04362936,1930.7,1930.6,1.03592]
[1741976249333,0.00775936,1930.7,1930.6,1.03592]
[1741976249627,1.04362936,1930.7,1930.6,1.03592]
[1741976250035,0.00775936,1930.7,1930.6,1.03592]
[1741976250733,1.04362936,1930.7,1930.6,1.03592]
[1741976252128,0.00775936,1930.7,1930.6,1.03592]
[1741976252435,1.04362936,1930.7,1930.6,1.03592]
[1741976252939,0.00775936,1930.7,1930.6,1.03592]
[1741976253126,1.04362936,1930.7,1930.6,2.38702]
[1741976254643,0.00775936,1930.7,1930.6,2.38702]
[1741976254937,1.04362936,1930.7,1930.6,2.38702]
[1741976255627,0.00775936,1930.7,1930.6,5.59482]
[1741976255832,0.00775936,1930.7,1930.6,3.09792]
[1741976257537,4.25142936,1930.7,1930.6,2.062]
[1741976258241,4.25142936,1930.7,1930.6,3.09792]
[1741976258428,2.47292936,1930.7,1930.6,2.062]
[1741976258631,2.47292936,1930.7,1930.6,3.09792]
[1741976258829,1.43705936,1930.7,1930.6,3.09792]
[1741976259237,2.47292936,1930.7,1930.6,3.09792]
[1741976259441,1.43705936,1930.7,1930.6,3.09792]
[1741976261744,2.47292936,1930.7,1930.6,3.09792]
[1741976262045,0.00775936,1930.7,1930.6,3.09792]
[1741976263149,1.38495936,1930.7,1930.6,3.09792]
[1741976266045,3.2078,1931.1,1931.0,1.03571]
[1741976266241,7.9084,1931.3,1930.9,1.03572]
[1741976266543,1.0357,1931.1,1931.0,1.4135]
[1741976266737,1.0357,1931.1,1931.0,2.44921]
[1741976266935,2.47604,1931.2,1931.0,2.44921]
[1741976267247,2.476,1931.2,1931.1,1.4135]
[1741976268442,2.476,1931.2,1931.1,2.44915]
[1741976268640,2.476,1931.2,1931.1,1.4135]
[1741976268950,1.4404,1931.2,1931.1,2.44915]
[1741976269455,2.476,1931.2,1931.1,2.44915]
[1741976269749,2.476,1931.2,1931.1,1.4135]
[1741976270147,0.00775936,1931.3,1931.2,1.0356]
[1741976270450,5.79561,1932.1,1931.4,2.58874]
[1741976270742,1.4035,1931.8,1931.7,1.03533]
[1741976270947,6.7758,1932.1,1931.9,1.0352]
[1741976270948,4.24295,1932.1,1931.9,1.0352]
[1741976271145,1.4035,1932.0,1931.9,1.0352]
[1741976271854,1.4035,1932.0,1931.8,1.04300936]
[1741976272150,1.03522,1931.9,1931.8,1.04302936]
[1741976272345,2.43871,1932.0,1931.8,1.04302936]
[1741976272548,1.4035,1932.0,1931.9,1.03522]
[1741976272744,3.21555936,1932.1,1932.0,1.03517]
[1741976272946,5.69440936,1932.1,1931.9,1.74518]
[1741976274749,1.45145936,1932.1,1932.0,1.03517]
[1741976275345,0.00775936,1932.1,1932.0,1.03517]
[1741976275551,0.00775936,1932.1,1932.0,1.69537]
[1741976277555,3.2078,1932.5,1932.1,2.58773]
[1741976277763,1.03492,1932.5,1932.1,2.58773]
[1741976278055,1.03492,1932.5,1932.3,1.03496]
[1741976278256,2.35632,1932.5,1932.3,1.03496]
[1741976278456,1.03496,1932.4,1932.3,1.03496]
[1741976278659,1.03499,1932.4,1932.2,1.03503]
[1741976279251,1.3214,1932.4,1932.3,1.03501]
[1741976279855,2.35636,1932.4,1932.2,1.03502]
[1741976280057,2.35636,1932.4,1932.2,4.58402]
[1741976280259,2.35636,1932.4,1932.2,3.549]
[1741976280453,2.35636,1932.4,1932.2,4.58403]
[1741976280652,1.3214,1932.4,1932.0,0.6602]
[1741976280854,3.9069,1932.3,1932.0,1.69536]
[1741976281054,1.4431,1932.2,1932.0,1.69536]
[1741976281260,1.03512,1932.1,1932.0,0.6602]
[1741976281552,1.4431,1932.2,1931.9,0.71]
[1741976281753,4.03079,1932.2,1931.9,1.03522]
[1741976281949,1.03518,1932.0,1931.8,0.00775936]
[1741976282149,1.4431,1931.9,1931.8,1.04303936]
[1741976282357,1.72094,1932.1,1932.0,1.03517]
[1741976282661,1.03522,1931.9,1931.8,1.04298936]
[1741976282861,2.47831,1932.0,1931.8,1.04298936]
[1741976283247,2.47831,1932.0,1931.8,0.00775936]
[1741976283248,1.03522,1931.9,1931.8,0.00775936]
[1741976283452,2.47832,1931.9,1931.8,0.00775936]
[1741976283658,1.4431,1931.9,1931.8,1.04303936]
[1741976283863,3.8936,1932.1,1932.0,1.03517]
[1741976284055,5.2095,1932.1,1932.0,1.03517]
[1741976284360,3.03684,1932.1,1931.9,1.03518]
[1741976284564,3.03684,1932.1,1931.8,0.00775936]
[1741976284858,1.03517,1932.0,1931.9,1.03517]
[1741976285056,1.03522,1931.9,1931.8,0.00775936]
[1741976285556,1.03522,1931.9,1931.8,1.04303936]
[1741976285756,1.03522,1931.9,1931.8,0.00775936]
[1741976285966,2.5884,1931.7,1931.1,3.2078]
[1741976286260,4.5237,1931.6,1931.1,3.2078]
[1741976286461,5.55913,1931.6,1931.4,1.03547]
[1741976286651,5.55912,1931.6,1931.4,1.03546]
[1741976286853,4.5237,1931.6,1931.5,2.39544]
[1741976287065,3.2078,1931.6,1931.5,2.39544]
[1741976287354,3.2078,1932.0,1931.5,3.94859]
[1741976287561,1.03523,1931.9,1931.8,1.03527]
[1741976287760,1.3354,1931.9,1931.8,1.03527]
[1741976288258,1.3354,1931.9,1931.7,1.3135]
[1741976288259,1.3354,1931.9,1931.7,2.34879]
[1741976288451,1.03528,1931.8,1931.7,2.34882]
[1741976288650,1.03528,1931.8,1931.7,1.03532]
[1741976288858,1.03528,1931.8,1931.6,1.73637]
[1741976289163,2.37073,1931.7,1931.6,0.701]
[1741976289464,1.3354,1931.7,1931.6,1.73639]
[1741976290260,3.2078,1931.8,1931.7,1.03533]
[1741976290458,4.6175,1931.8,1931.7,1.03533]
[1741976290657,5.65278,1931.8,1931.7,1.03533]
[1741976290960,1.03535,1931.7,1931.5,1.03541]
[1741976291159,2.44505,1931.7,1931.5,1.03541]
[1741976291561,1.4097,1931.6,1931.5,1.03541]
[1741976291762,1.4097,1931.6,1931.5,1.03544]
[1741976294562,2.44509,1931.6,1931.5,1.03544]
[1741976294867,1.4097,1931.6,1931.5,1.03544]
[1741976296364,3.98805,1932.0,1931.9,1.03522]
[1741976296365,1.4001,1932.0,1931.9,1.03522]
[1741976296561,9.1818,1932.2,1931.7,5.79614]
[1741976296562,2.46555,1932.1,1931.7,5.79614]
[1741976296766,1.4304,1932.0,1931.9,1.03518]
[1741976296961,3.2078,1932.2,1932.1,1.03512]
[1741976297762,4.6382,1932.2,1932.1,1.03512]
[1741976298164,4.6382,1932.2,1931.9,3.557]
[1741976298364,1.4304,1932.1,1932.0,1.03517]
[1741976301463,2.46554,1932.1,1931.9,1.03518]
[1741976301865,1.3129,1932.0,1931.9,1.03518]
[1741976302560,1.03526,1931.9,1931.7,2.3624]
[1741976302763,2.42108,1931.8,1931.7,1.3271]
[1741976302964,1.0354,1931.6,1931.5,1.03544]
[1741976303165,2.58818,1931.9,1931.4,6.00575936]
[1741976303166,1.03544,1931.5,1931.4,0.00775936]
[1741976303365,2.42124,1931.5,1931.4,0.00775936]
[1741976303566,5.62904,1931.5,1931.4,0.00775936]
[1741976304967,1.03565,1931.1,1931.0,28.71]
[1741976305478,1.03564,1931.2,1931.0,1.03567]
[1741976305676,1.03565,1931.1,1930.9,0.6979]
[1741976305967,1.3784,1931.0,1930.9,1.73364]
[1741976306777,1.3784,1931.0,1930.9,3.15174]
[1741976308271,2.41411,1931.0,1930.9,3.15174]
[1741976308467,1.3784,1931.0,1930.8,0.00775936]
[1741976308668,1.03576,1930.9,1930.8,1.43295936]
[1741976308974,2.41415,1931.0,1930.9,1.03576]
[1741976309174,4.5862,1931.0,1930.8,1.43295936]
[1741976309374,1.3784,1931.0,1930.9,1.03576]
[1741976309967,2.41411,1931.0,1930.9,0.7045]
[1741976310281,1.3784,1931.0,1930.9,1.74026]
[1741976310482,1.3784,1931.0,1930.9,3.16546]
[1741976310689,1.03566,1931.1,1930.9,3.16546]
[1741976310977,1.04336936,1931.2,1931.0,1.03567]
[1741976311179,0.00775936,1931.2,1931.1,1.03565]
[1741976311484,0.00775936,1931.2,1931.1,3.13785]
[1741976312183,1.04335936,1931.2,1931.1,1.3825]
[1741976312782,0.00775936,1931.2,1931.1,2.41815]
[1741976314980,1.03543,1931.6,1931.5,1.03544]
[1741976315183,1.03542,1931.6,1931.4,1.03547]
[1741976315388,1.03542,1931.6,1931.5,1.3414]
[1741976315589,4.24316,1931.7,1931.5,2.37684]
[1741976315791,1.76202,1931.8,1931.6,1.03539]
[1741976315990,0.6923,1931.9,1931.7,1.03532]
[1741976315991,1.72755,1931.9,1931.7,1.03532]
[1741976316286,0.00775936,1931.9,1931.8,2.37668]
[1741976316589,1.04297936,1931.9,1931.8,2.37668]
[1741976316889,1.04297936,1931.9,1931.8,1.3414]
[1741976317279,0.00775936,1931.9,1931.8,2.37668]
[1741976317681,1.04297936,1931.9,1931.8,1.3414]
[1741976318180,1.04297936,1931.9,1931.8,2.37668]
[1741976318785,0.00775936,1931.9,1931.8,2.37668]
[1741976319287,1.04297936,1931.9,1931.8,1.3414]
[1741976320788,1.04297936,1931.9,1931.6,4.60339]
[1741976320789,1.03532,1931.8,1931.6,4.60339]
[1741976320992,1.03532,1931.8,1931.7,1.4553]
[1741976323193,1.03532,1931.8,1931.7,2.49063]
[1741976323388,1.03532,1931.8,1931.7,1.4553]
[1741976323590,1.03539,1931.6,1931.5,2.4263]
[1741976323886,1.03539,1931.6,1931.5,5.9833]
[1741976324090,0.00775936,1931.9,1931.8,1.03528]
[1741976324290,0.00775936,1931.9,1931.7,1.03529]
[1741976324491,0.00775936,1931.9,1931.8,1.03528]
[1741976324685,1.04301936,1931.9,1931.8,1.03528]
[1741976325390,1.04301936,1931.9,1931.8,1.07805852]
[1741976325889,1.04301936,1931.9,1931.8,0.04277852]
[1741976326093,1.03528,1931.8,1931.7,2.4124]
[1741976326389,1.04303936,1931.9,1931.7,1.0353]
[1741976326596,1.03528,1931.8,1931.6,1.03535]
[1741976326792,1.4447,1931.8,1931.7,1.06057135]
[1741976327092,2.48,1931.8,1931.7,1.06057135]
[1741976327593,2.48,1931.8,1931.7,0.02524135]
[1741976327990,2.48,1931.8,1931.7,1.06057135]
[1741976328398,2.48,1931.8,1931.7,1.0858127]
[1741976329106,2.48,1931.8,1931.7,1.11105405]
[1741976329390,1.4447,1931.8,1931.7,1.11105405]
[1741976330797,1.4447,1931.8,1931.7,1.13632827]
[1741976331195,1.04302936,1931.9,1931.8,1.03528]
[1741976331397,1.40305936,1931.9,1931.8,1.16155249]
[1741976331595,0.00775936,1931.9,1931.8,1.16155249]
[1741976332103,0.00775936,1931.9,1931.8,4.70955249]
[1741976332790,0.00775936,1931.9,1931.8,3.67427249]
[1741976332995,2.47007936,1931.9,1931.8,0.12627249]
[1741976333195,1.43485936,1931.9,1931.6,9.545]
[1741976333398,1.03539,1931.6,1931.5,1.3909]
[1741976333587,1.03555,1931.3,1931.2,31.9258]
[1741976333793,1.03564,1931.2,1931.0,1.03571]
[1741976333995,1.4271,1931.2,1930.9,1.3775]
[1741976334191,1.03567,1931.1,1930.9,2.41325]
[1741976334396,1.4271,1931.2,1931.0,1.0357]
[1741976334397,1.03563,1931.2,1931.0,1.0357]
[1741976336090,5.79655,1931.4,1930.9,1.3775]
[1741976336295,1.03571,1931.0,1930.9,1.3775]
[1741976336697,1.03571,1931.0,1930.9,2.7309]
[1741976336996,1.03571,1931.0,1930.9,3.76666]
[1741976337199,1.03569,1931.1,1930.9,3.76666]
[1741976337596,4.24344,1931.2,1931.0,1.03571]
[1741976337803,3.2078,1931.2,1931.1,1.03565]
[1741976338611,4.2434,1931.2,1931.0,2.38908]
[1741976338800,1.03565,1931.1,1931.0,1.3534]
[1741976339107,4.24345,1931.2,1931.0,2.38909]
[1741976339305,1.03565,1931.1,1931.0,2.38909]
[1741976339504,1.03565,1931.1,1930.9,1.3775]
[1741976340008,3.2078,1931.2,1931.0,1.03569]
[1741976340306,4.24341,1931.2,1930.9,1.3775]
[1741976340513,3.2078,1931.2,1931.1,1.03565]
[1741976340806,4.2434,1931.2,1931.1,1.03565]
[1741976341001,4.2434,1931.2,1931.1,1.0602874]
[1741976341300,3.2078,1931.2,1931.1,0.0246374]
[1741976341510,3.2078,1931.2,1931.0,1.03571]
[1741976341706,4.24342,1931.2,1931.0,1.03571]
[1741976341906,3.2078,1931.2,1931.1,1.03565]
[1741976343704,0.7019,1931.5,1931.4,1.03549]
[1741976343908,3.2078,1931.6,1931.5,1.03544]
[1741976344099,0.00775936,1931.9,1931.8,1.03528]
[1741976344805,0.00775936,1931.9,1931.8,4.24308]
[1741976345006,1.01482944,1932.3,1932.2,1.03506]
[1741976345205,2.04983944,1932.3,1932.1,1.03509]
[1741976345405,1.03501,1932.3,1932.0,1.03513]
[1741976345606,1.03501,1932.3,1932.1,1.03511]
[1741976345805,3.2078,1932.4,1932.2,1.03505]
[1741976346008,3.2078,1932.4,1932.2,1.03502]
[1741976346201,3.2078,1932.4,1932.3,1.03501]
[1741976346407,3.2078,1932.4,1932.1,3.55575936]
[1741976346714,4.24278,1932.4,1932.2,1.03504]
[1741976346915,1.4493,1932.3,1932.2,1.03504]
[1741976347509,3.2078,1932.4,1932.3,1.03501]
[1741976347812,1.45705936,1932.5,1932.2,2.58767]
[1741976348016,2.49196936,1932.5,1932.3,1.03496]
[1741976348207,2.49196936,1932.5,1932.2,1.03502]
[1741976348407,2.49196936,1932.5,1932.3,1.03501]
[1741976348813,2.49195936,1932.5,1932.3,1.03498]
[1741976349522,2.49195936,1932.5,1932.4,1.03496]
[1741976349523,1.45705936,1932.5,1932.4,1.03496]
[1741976349713,2.49198936,1932.5,1932.3,1.03499]
[1741976350823,2.49200936,1932.5,1932.3,1.03501]
[1741976351213,1.03498,1932.4,1932.2,1.03504]
[1741976351409,1.3801,1932.3,1932.2,1.03504]
[1741976351713,1.3801,1932.3,1932.1,3.55575936]
[1741976351714,1.03506,1932.2,1932.1,0.00775936]
[1741976351910,4.96626,1932.2,1932.1,0.00775936]
[1741976353920,1.3801,1932.3,1932.1,0.00775936]
[1741976354222,12.73655936,1932.5,1932.1,0.00775936]
[1741976354223,4.25046936,1932.5,1932.3,1.03498]
[1741976354420,5.56896936,1932.5,1932.3,1.03498]
[1741976354620,4.53405936,1932.5,1932.1,6.14251936]
[1741976354824,5.56898936,1932.5,1932.1,6.14251936]
[1741976355011,5.56898936,1932.5,1932.3,1.03496]
[1741976355417,5.56898936,1932.5,1932.3,1.03498]
[1741976356317,1.03496,1932.4,1932.3,1.035]
[1741976356521,1.3185,1932.4,1932.3,1.035]
[1741976357719,2.3535,1932.4,1932.2,2.40885]
[1741976357918,2.3535,1932.4,1932.3,1.03501]
[1741976358118,2.3535,1932.4,1932.2,2.40882]
[1741976358325,1.03501,1932.3,1932.2,2.40882]
[1741976358520,1.369,1932.3,1932.2,2.40882]